[Event "Titled Tuesday Blitz February 21 Early 2023"]
[White "UNSTOPPABLE_LEGEND"]
[Black "Movahed, Sina"]
[BlackFideId "42520835"]
[WhiteElo "2437"]
[BlackElo "2340"]
[Result "0-1"]
[Round "01"]
[TimeControl "180+2"]
[Date "2023.02.21"]
[WhiteClock "0:00:03"]
[BlackClock "0:00:10"]

1. d4 {[%clk 0:03:00]}  Nf6 {[%clk 0:02:59]} 2. c4 {[%clk 0:03:00]}  g6 {[%clk 0:03:00]} 3. Nc3 {[%clk 0:02:59]}  Bg7 {[%clk 0:03:00]} 4. e4 {[%clk 0:03:00]}  d6 {[%clk 0:03:01]} 5. h3 {[%clk 0:03:00]}  O-O {[%clk 0:03:02]} 6. Be3 {[%clk 0:03:00]}  Nc6 {[%clk 0:02:59]} 7. d5 {[%clk 0:02:59]}  Ne5 {[%clk 0:02:59]} 8. f4 {[%clk 0:02:58]}  Ned7 {[%clk 0:02:59]} 9. g4 {[%clk 0:02:58]}  Re8 {[%clk 0:02:59]} 10. Nf3 {[%clk 0:02:36]}  e6 {[%clk 0:02:58]} 11. dxe6 {[%clk 0:02:10]}  Rxe6 {[%clk 0:02:56]} 12. Bd3 {[%clk 0:01:58]}  Re8 {[%clk 0:02:18]} 13. Qd2 {[%clk 0:01:35]}  b6 {[%clk 0:02:17]} 14. g5 {[%clk 0:01:25]}  Nh5 {[%clk 0:02:15]} 15. Rg1 {[%clk 0:01:01]}  Nc5 {[%clk 0:02:12]} 16. Bxc5 {[%clk 0:00:53]}  bxc5 {[%clk 0:02:13]} 17. O-O-O {[%clk 0:00:52]}  Rb8 {[%clk 0:02:11]} 18. f5 {[%clk 0:00:46]}  Bd4 {[%clk 0:01:58]} 19. Nxd4 {[%clk 0:00:39]}  cxd4 {[%clk 0:01:59]} 20. Nd5 {[%clk 0:00:33]}  c6 {[%clk 0:01:57]} 21. Nf4 {[%clk 0:00:26]}  Nxf4 {[%clk 0:01:43]} 22. Qxf4 {[%clk 0:00:27]}  Re5 {[%clk 0:01:39]} 23. h4 {[%clk 0:00:27]}  Qa5 {[%clk 0:01:38]} 24. a3 {[%clk 0:00:24]}  Ba6 {[%clk 0:01:16]} 25. h5 {[%clk 0:00:20]}  Rbe8 {[%clk 0:00:44]} 26. hxg6 {[%clk 0:00:18]}  fxg6 {[%clk 0:00:43]} 27. Rh1 {[%clk 0:00:18]}  Rf8 {[%clk 0:00:38]} 28. Qh4 {[%clk 0:00:18]}  Qc7 {[%clk 0:00:35]} 29. fxg6 {[%clk 0:00:18]}  Qg7 {[%clk 0:00:35]} 30. gxh7+ {[%clk 0:00:18]}  Kh8 {[%clk 0:00:35]} 31. Rdf1 {[%clk 0:00:18]}  Rfe8 {[%clk 0:00:20]} 32. g6 {[%clk 0:00:17]}  Qxg6 {[%clk 0:00:19]} 33. Rhg1 {[%clk 0:00:18]}  Qe6 {[%clk 0:00:16]} 34. Qg3 {[%clk 0:00:18]}  Qh6+ {[%clk 0:00:14]} 35. Kb1 {[%clk 0:00:17]}  Qxh7 {[%clk 0:00:10]} 36. Rh1 {[%clk 0:00:17]}  Rh5 {[%clk 0:00:10]} 37. Rxh5 {[%clk 0:00:17]}  Qxh5 {[%clk 0:00:11]} 38. Be2 {[%clk 0:00:17]}  Qh7 {[%clk 0:00:09]} 39. Bg4 {[%clk 0:00:15]}  Qxe4+ {[%clk 0:00:08]} 40. Ka1 {[%clk 0:00:16]}  Bxc4 {[%clk 0:00:08]} 41. Bf3 {[%clk 0:00:15]}  Bxf1 {[%clk 0:00:04]} 42. Bxe4 {[%clk 0:00:15]}  Rxe4 {[%clk 0:00:05]} 43. Qh2+ {[%clk 0:00:15]}  Kg7 {[%clk 0:00:05]} 44. Qg1+ {[%clk 0:00:16]}  Kf6 {[%clk 0:00:06]} 45. Qxf1+ {[%clk 0:00:17]}  Ke5 {[%clk 0:00:07]} 46. Qc4 {[%clk 0:00:16]}  c5 {[%clk 0:00:07]} 47. Ka2 {[%clk 0:00:16]}  Re3 {[%clk 0:00:07]} 48. a4 {[%clk 0:00:16]}  a5 {[%clk 0:00:07]} 49. Qb5 {[%clk 0:00:16]}  d3 {[%clk 0:00:08]} 50. Kb1 {[%clk 0:00:16]}  Re1+ {[%clk 0:00:07]} 51. Ka2 {[%clk 0:00:17]}  d2 {[%clk 0:00:08]} 52. Qe8+ {[%clk 0:00:16]}  Kd4 {[%clk 0:00:08]} 53. Qh8+ {[%clk 0:00:17]}  Kd3 {[%clk 0:00:08]} 54. Qh3+ {[%clk 0:00:17]}  Re3 {[%clk 0:00:06]} 55. Qf5+ {[%clk 0:00:17]}  Ke2 {[%clk 0:00:06]} 56. Qg4+ {[%clk 0:00:17]}  Rf3 {[%clk 0:00:05]} 57. Qe4+ {[%clk 0:00:17]}  Kf2 {[%clk 0:00:06]} 58. Qd5 {[%clk 0:00:16]}  Ke1 {[%clk 0:00:07]} 59. Qxf3 {[%clk 0:00:13]}  d1=Q {[%clk 0:00:06]} 60. Qe3+ {[%clk 0:00:13]}  Qe2 {[%clk 0:00:06]} 61. Qc1+ {[%clk 0:00:14]}  Kf2 {[%clk 0:00:06]} 62. Qf4+ {[%clk 0:00:14]}  Ke1 {[%clk 0:00:06]} 63. Qxd6 {[%clk 0:00:14]}  Qc4+ {[%clk 0:00:06]} 64. Ka3 {[%clk 0:00:14]}  Qb4+ {[%clk 0:00:07]} 65. Ka2 {[%clk 0:00:14]}  Qxa4+ {[%clk 0:00:08]} 66. Kb1 {[%clk 0:00:15]}  Qb4 {[%clk 0:00:09]} 67. Qe5+ {[%clk 0:00:14]}  Kd2 {[%clk 0:00:08]} 68. Qd5+ {[%clk 0:00:14]}  Ke3 {[%clk 0:00:08]} 69. Qd1 {[%clk 0:00:10]}  Qe4+ {[%clk 0:00:08]} 70. Ka1 {[%clk 0:00:10]}  Qc4 {[%clk 0:00:09]} 71. Qe1+ {[%clk 0:00:10]}  Kd3 {[%clk 0:00:09]} 72. Qxa5 {[%clk 0:00:09]}  Kc2 {[%clk 0:00:09]} 73. Qa8 {[%clk 0:00:04]}  Qf1+ {[%clk 0:00:08]} 74. Ka2 {[%clk 0:00:04]}  Qb1+ {[%clk 0:00:09]} 75. Ka3 {[%clk 0:00:04]}  Qxb2+ {[%clk 0:00:10]} 76. Ka4 {[%clk 0:00:03]}  Qb4# {[%clk 0:00:10]} 0-1


[Site "https://www.chess.com"]

[Event "Titled Tuesday Blitz February 21 Early 2023"]
[White "Ziatdinov, Raset"]
[Black "Boruchovsky, Avital"]
[WhiteFideId "2015323"]
[BlackFideId "2800055"]
[WhiteElo "2101"]
[BlackElo "2539"]
[Result "0-1"]
[Round "01"]
[TimeControl "180+2"]
[Date "2023.02.21"]
[WhiteClock "0:00:20"]
[BlackClock "0:00:13"]

1. e4 {[%clk 0:02:52]}  c5 {[%clk 0:02:59]} 2. Nc3 {[%clk 0:02:50]}  d6 {[%clk 0:02:57]} 3. g3 {[%clk 0:02:50]}  Nc6 {[%clk 0:02:57]} 4. Bg2 {[%clk 0:02:50]}  h5 {[%clk 0:02:56]} 5. h4 {[%clk 0:02:49]}  g6 {[%clk 0:02:54]} 6. Nh3 {[%clk 0:02:50]}  Nf6 {[%clk 0:02:48]} 7. O-O {[%clk 0:02:49]}  Bh6 {[%clk 0:02:40]} 8. Ng5 {[%clk 0:02:40]}  Bg4 {[%clk 0:02:26]} 9. f3 {[%clk 0:02:39]}  Bd7 {[%clk 0:02:26]} 10. d3 {[%clk 0:02:39]}  Nd4 {[%clk 0:02:25]} 11. Be3 {[%clk 0:02:37]}  Qc7 {[%clk 0:02:11]} 12. Qd2 {[%clk 0:02:35]}  Bg7 {[%clk 0:01:46]} 13. Nd1 {[%clk 0:02:29]}  Ne6 {[%clk 0:01:39]} 14. Nf2 {[%clk 0:02:27]}  Nxg5 {[%clk 0:01:39]} 15. hxg5 {[%clk 0:02:25]}  Nh7 {[%clk 0:01:39]} 16. f4 {[%clk 0:02:25]}  Bxb2 {[%clk 0:01:38]} 17. Rab1 {[%clk 0:02:23]}  Bg7 {[%clk 0:01:38]} 18. e5 {[%clk 0:02:14]}  Bc6 {[%clk 0:01:36]} 19. exd6 {[%clk 0:02:13]}  exd6 {[%clk 0:01:33]} 20. Ne4 {[%clk 0:02:13]}  O-O-O {[%clk 0:01:24]} 21. d4 {[%clk 0:02:14]}  Rhe8 {[%clk 0:01:15]} 22. d5 {[%clk 0:01:58]}  Bd7 {[%clk 0:01:15]} 23. Rb3 {[%clk 0:01:53]}  f5 {[%clk 0:01:13]} 24. Nf2 {[%clk 0:01:51]}  Kb8 {[%clk 0:01:07]} 25. Rfb1 {[%clk 0:01:50]}  Bc8 {[%clk 0:01:08]} 26. Bf1 {[%clk 0:01:48]}  Nf8 {[%clk 0:01:06]} 27. Ba6 {[%clk 0:01:46]}  b6 {[%clk 0:01:04]} 28. Bb5 {[%clk 0:01:44]}  Nd7 {[%clk 0:01:00]} 29. a4 {[%clk 0:01:43]}  Re7 {[%clk 0:00:42]} 30. a5 {[%clk 0:01:43]}  Bb7 {[%clk 0:00:31]} 31. axb6 {[%clk 0:01:43]}  Nxb6 {[%clk 0:00:32]} 32. c4 {[%clk 0:01:25]}  h4 {[%clk 0:00:24]} 33. Kg2 {[%clk 0:01:15]}  hxg3 {[%clk 0:00:23]} 34. Kxg3 {[%clk 0:01:15]}  Rh8 {[%clk 0:00:24]} 35. Rh1 {[%clk 0:00:48]}  Rxh1 {[%clk 0:00:22]} 36. Nxh1 {[%clk 0:00:48]}  a6 {[%clk 0:00:22]} 37. Bc6 {[%clk 0:00:48]}  Bxc6 {[%clk 0:00:22]} 38. dxc6 {[%clk 0:00:48]}  Qxc6 {[%clk 0:00:22]} 39. Nf2 {[%clk 0:00:46]}  Ka7 {[%clk 0:00:21]} 40. Qc2 {[%clk 0:00:40]}  Bd4 {[%clk 0:00:18]} 41. Bd2 {[%clk 0:00:22]}  Re2 {[%clk 0:00:15]} 42. Qd3 {[%clk 0:00:20]}  Rxf2 {[%clk 0:00:13]} 0-1


[Site "https://www.chess.com"]

[Event "Titled Tuesday Blitz February 21 Early 2023"]
[White "Matko, Ognjen"]
[Black "Kukhmazov, Arsen"]
[WhiteFideId "14509717"]
[BlackFideId "24108260"]
[WhiteElo "2295"]
[BlackElo "2512"]
[Result "0-1"]
[Round "01"]
[TimeControl "180+2"]
[Date "2023.02.21"]
[WhiteClock "0:00:06"]
[BlackClock "0:00:48"]

1. e4 {[%clk 0:02:55]}  e5 {[%clk 0:03:00]} 2. Nf3 {[%clk 0:02:54]}  Nc6 {[%clk 0:03:00]} 3. d4 {[%clk 0:02:54]}  exd4 {[%clk 0:03:00]} 4. Nxd4 {[%clk 0:02:55]}  Nf6 {[%clk 0:02:59]} 5. Nxc6 {[%clk 0:02:54]}  bxc6 {[%clk 0:03:00]} 6. e5 {[%clk 0:02:54]}  Qe7 {[%clk 0:03:00]} 7. Qe2 {[%clk 0:02:54]}  Nd5 {[%clk 0:03:01]} 8. c4 {[%clk 0:02:49]}  Ba6 {[%clk 0:03:01]} 9. b3 {[%clk 0:02:48]}  g6 {[%clk 0:02:58]} 10. Bb2 {[%clk 0:02:45]}  Bg7 {[%clk 0:02:56]} 11. Nd2 {[%clk 0:02:44]}  O-O {[%clk 0:02:46]} 12. O-O-O {[%clk 0:02:39]}  Rfe8 {[%clk 0:02:46]} 13. Nf3 {[%clk 0:02:24]}  Rad8 {[%clk 0:02:25]} 14. Qd2 {[%clk 0:02:08]}  Nb6 {[%clk 0:02:25]} 15. Bd3 {[%clk 0:01:47]}  d5 {[%clk 0:02:15]} 16. exd6 {[%clk 0:01:46]}  Rxd6 {[%clk 0:01:57]} 17. Bxg7 {[%clk 0:01:41]}  Kxg7 {[%clk 0:01:58]} 18. Rhe1 {[%clk 0:01:34]}  Re6 {[%clk 0:01:48]} 19. Qc3+ {[%clk 0:01:30]}  Qf6 {[%clk 0:01:47]} 20. Qxf6+ {[%clk 0:01:27]}  Kxf6 {[%clk 0:01:48]} 21. Rxe6+ {[%clk 0:01:26]}  Rxe6 {[%clk 0:01:49]} 22. Kd2 {[%clk 0:01:22]}  Nd7 {[%clk 0:01:47]} 23. Bc2 {[%clk 0:01:06]}  c5 {[%clk 0:01:45]} 24. Re1 {[%clk 0:01:03]}  Rd6+ {[%clk 0:01:44]} 25. Kc3 {[%clk 0:01:02]}  Bb7 {[%clk 0:01:45]} 26. Be4 {[%clk 0:01:00]}  Bxe4 {[%clk 0:01:30]} 27. Rxe4 {[%clk 0:01:01]}  g5 {[%clk 0:01:29]} 28. h4 {[%clk 0:00:57]}  h6 {[%clk 0:01:28]} 29. hxg5+ {[%clk 0:00:56]}  hxg5 {[%clk 0:01:29]} 30. g3 {[%clk 0:00:49]}  Kf5 {[%clk 0:01:16]} 31. Re3 {[%clk 0:00:41]}  f6 {[%clk 0:01:13]} 32. Nd2 {[%clk 0:00:34]}  Rd4 {[%clk 0:01:07]} 33. Ne4 {[%clk 0:00:21]}  Rxe4 {[%clk 0:01:05]} 34. Rd3 {[%clk 0:00:21]}  Re7 {[%clk 0:00:56]} 35. f3 {[%clk 0:00:16]}  Ke6 {[%clk 0:00:53]} 36. g4 {[%clk 0:00:13]}  Ne5 {[%clk 0:00:50]} 37. Rd5 {[%clk 0:00:13]}  Nxf3 {[%clk 0:00:50]} 38. Rxc5 {[%clk 0:00:13]}  Ne5 {[%clk 0:00:51]} 39. Ra5 {[%clk 0:00:11]}  Nxg4 {[%clk 0:00:48]} 40. Rxa7 {[%clk 0:00:11]}  f5 {[%clk 0:00:48]} 41. Ra8 {[%clk 0:00:11]}  f4 {[%clk 0:00:48]} 42. a4 {[%clk 0:00:10]}  f3 {[%clk 0:00:47]} 43. Kd3 {[%clk 0:00:08]}  Kf5 {[%clk 0:00:47]} 44. Rf8+ {[%clk 0:00:06]}  Nf6 {[%clk 0:00:48]} 0-1


[Site "https://www.chess.com"]

[Event "Titled Tuesday Blitz February 21 Early 2023"]
[White "Gatterer, Florian"]
[Black "Fier, Alexandr"]
[WhiteFideId "811688"]
[BlackFideId "2107139"]
[WhiteElo "2170"]
[BlackElo "2589"]
[Result "1-0"]
[Round "01"]
[TimeControl "180+2"]
[Date "2023.02.21"]
[WhiteClock "0:00:31"]
[BlackClock "0:01:12"]

1. c4 {[%clk 0:03:00]}  c5 {[%clk 0:02:57]} 2. Nf3 {[%clk 0:02:59]}  b6 {[%clk 0:02:57]} 3. g3 {[%clk 0:02:58]}  Bb7 {[%clk 0:02:57]} 4. Bg2 {[%clk 0:02:59]}  e6 {[%clk 0:02:56]} 5. Nc3 {[%clk 0:02:59]}  Nf6 {[%clk 0:02:57]} 6. O-O {[%clk 0:02:59]}  a6 {[%clk 0:02:57]} 7. d4 {[%clk 0:02:59]}  cxd4 {[%clk 0:02:57]} 8. Nxd4 {[%clk 0:02:57]}  Bxg2 {[%clk 0:02:57]} 9. Kxg2 {[%clk 0:02:57]}  Qc7 {[%clk 0:02:57]} 10. Qd3 {[%clk 0:02:52]}  Nc6 {[%clk 0:02:56]} 11. Nxc6 {[%clk 0:02:51]}  Qxc6+ {[%clk 0:02:56]} 12. f3 {[%clk 0:02:52]}  Rc8 {[%clk 0:02:56]} 13. c5 {[%clk 0:02:42]}  bxc5 {[%clk 0:02:53]} 14. e4 {[%clk 0:02:36]}  d6 {[%clk 0:02:49]} 15. Bf4 {[%clk 0:02:34]}  Be7 {[%clk 0:02:48]} 16. Rfd1 {[%clk 0:02:33]}  Rd8 {[%clk 0:02:48]} 17. Rac1 {[%clk 0:02:29]}  O-O {[%clk 0:02:40]} 18. b4 {[%clk 0:02:28]}  c4 {[%clk 0:02:34]} 19. Qe2 {[%clk 0:02:19]}  Rfe8 {[%clk 0:02:24]} 20. a3 {[%clk 0:02:14]}  d5 {[%clk 0:02:22]} 21. e5 {[%clk 0:02:06]}  Nd7 {[%clk 0:02:21]} 22. h4 {[%clk 0:02:00]}  a5 {[%clk 0:02:17]} 23. b5 {[%clk 0:01:59]}  Qb7 {[%clk 0:02:15]} 24. a4 {[%clk 0:01:59]}  Bb4 {[%clk 0:02:15]} 25. h5 {[%clk 0:01:54]}  Nc5 {[%clk 0:02:13]} 26. h6 {[%clk 0:01:51]}  g6 {[%clk 0:02:11]} 27. Bg5 {[%clk 0:01:50]}  Nb3 {[%clk 0:02:07]} 28. Rc2 {[%clk 0:01:44]}  Rd7 {[%clk 0:02:07]} 29. Na2 {[%clk 0:01:38]}  Bf8 {[%clk 0:02:06]} 30. g4 {[%clk 0:01:29]}  Rc8 {[%clk 0:02:04]} 31. Nc3 {[%clk 0:01:28]}  d4 {[%clk 0:01:46]} 32. Ne4 {[%clk 0:01:27]}  d3 {[%clk 0:01:47]} 33. Nf6+ {[%clk 0:01:27]}  Kh8 {[%clk 0:01:47]} 34. Qf2 {[%clk 0:01:00]}  Rd4 {[%clk 0:01:35]} 35. Rc3 {[%clk 0:00:58]}  Bb4 {[%clk 0:01:32]} 36. Rxb3 {[%clk 0:00:56]}  Rcd8 {[%clk 0:01:19]} 37. Rxb4 {[%clk 0:00:36]}  axb4 {[%clk 0:01:18]} 38. Ne4 {[%clk 0:00:36]}  c3 {[%clk 0:01:11]} 39. Bxd8 {[%clk 0:00:32]}  Rxd8 {[%clk 0:01:12]} 40. Qh4 {[%clk 0:00:31]} 1-0


[Site "https://www.chess.com"]

[Event "Titled Tuesday Blitz February 21 Early 2023"]
[White "Sargissyan, Sargis"]
[Black "Fernandez Guillen, Ernesto J."]
[WhiteFideId "13303210"]
[BlackFideId "3512428"]
[WhiteElo "2234"]
[BlackElo "2477"]
[Result "0-1"]
[Round "01"]
[TimeControl "180+2"]
[Date "2023.02.21"]
[WhiteClock "0:00:04"]
[BlackClock "0:00:10"]

1. e4 {[%clk 0:02:58]}  e5 {[%clk 0:02:47]} 2. Nf3 {[%clk 0:02:57]}  Nc6 {[%clk 0:02:43]} 3. Bb5 {[%clk 0:02:58]}  f5 {[%clk 0:02:42]} 4. Nc3 {[%clk 0:02:57]}  fxe4 {[%clk 0:02:42]} 5. Nxe4 {[%clk 0:02:58]}  d5 {[%clk 0:02:43]} 6. Nxe5 {[%clk 0:02:57]}  dxe4 {[%clk 0:02:44]} 7. Nxc6 {[%clk 0:02:56]}  Qg5 {[%clk 0:02:43]} 8. Qe2 {[%clk 0:02:51]}  Nf6 {[%clk 0:02:41]} 9. f4 {[%clk 0:02:22]}  Qh4+ {[%clk 0:02:03]} 10. g3 {[%clk 0:02:20]}  Qh3 {[%clk 0:02:01]} 11. Ne5+ {[%clk 0:01:57]}  c6 {[%clk 0:02:01]} 12. Bc4 {[%clk 0:01:51]}  Bc5 {[%clk 0:01:57]} 13. d4 {[%clk 0:01:12]}  Bxd4 {[%clk 0:01:54]} 14. Be3 {[%clk 0:01:12]}  Bxe5 {[%clk 0:01:47]} 15. fxe5 {[%clk 0:01:12]}  Bg4 {[%clk 0:01:45]} 16. Qf1 {[%clk 0:01:01]}  Nd5 {[%clk 0:01:42]} 17. Qxh3 {[%clk 0:00:58]}  Bxh3 {[%clk 0:01:42]} 18. Bxd5 {[%clk 0:00:54]}  cxd5 {[%clk 0:01:43]} 19. O-O-O {[%clk 0:00:54]}  Be6 {[%clk 0:01:40]} 20. Rhf1 {[%clk 0:00:51]}  b6 {[%clk 0:01:36]} 21. Kb1 {[%clk 0:00:42]}  Rc8 {[%clk 0:01:32]} 22. c3 {[%clk 0:00:39]}  Rc7 {[%clk 0:01:26]} 23. a4 {[%clk 0:00:38]}  h5 {[%clk 0:01:21]} 24. h4 {[%clk 0:00:33]}  Rc4 {[%clk 0:01:16]} 25. a5 {[%clk 0:00:32]}  bxa5 {[%clk 0:01:14]} 26. Bxa7 {[%clk 0:00:32]}  a4 {[%clk 0:01:13]} 27. Bd4 {[%clk 0:00:31]}  Ke7 {[%clk 0:01:06]} 28. Kc2 {[%clk 0:00:28]}  Bg4 {[%clk 0:00:55]} 29. Ra1 {[%clk 0:00:28]}  Rb8 {[%clk 0:00:50]} 30. Rf2 {[%clk 0:00:21]}  Bf3 {[%clk 0:00:42]} 31. Ra3 {[%clk 0:00:20]}  Ke6 {[%clk 0:00:38]} 32. b4 {[%clk 0:00:17]}  Rbxb4 {[%clk 0:00:37]} 33. Kc1 {[%clk 0:00:15]}  Rxd4 {[%clk 0:00:31]} 34. cxd4 {[%clk 0:00:12]}  Rxd4 {[%clk 0:00:32]} 35. Rb2 {[%clk 0:00:12]}  Rd1+ {[%clk 0:00:24]} 36. Kc2 {[%clk 0:00:12]}  Rg1 {[%clk 0:00:20]} 37. Rb7 {[%clk 0:00:10]}  Rxg3 {[%clk 0:00:16]} 38. Rxa4 {[%clk 0:00:10]}  Kxe5 {[%clk 0:00:16]} 39. Ra5 {[%clk 0:00:09]}  Rg2+ {[%clk 0:00:12]} 40. Kc1 {[%clk 0:00:09]}  Kd4 {[%clk 0:00:10]} 41. Rd7 {[%clk 0:00:08]}  e3 {[%clk 0:00:08]} 42. Re7 {[%clk 0:00:07]}  Be4 {[%clk 0:00:08]} 43. Ra4+ {[%clk 0:00:05]}  Kd3 {[%clk 0:00:08]} 44. Ra3+ {[%clk 0:00:06]}  Ke2 {[%clk 0:00:09]} 45. Ra2+ {[%clk 0:00:06]}  Kf1 {[%clk 0:00:09]} 46. Rxg2 {[%clk 0:00:05]}  Kxg2 {[%clk 0:00:10]} 47. Kd1 {[%clk 0:00:05]}  Kf2 {[%clk 0:00:10]} 48. Rf7+ {[%clk 0:00:04]}  Bf3+ {[%clk 0:00:10]} 49. Kc2 {[%clk 0:00:04]}  e2 {[%clk 0:00:10]} 0-1


[Site "https://www.chess.com"]

[Event "Titled Tuesday Blitz February 21 Early 2023"]
[White "Kilic, Eray"]
[Black "Martic, Ivan"]
[WhiteFideId "44517173"]
[BlackFideId "929301"]
[WhiteElo "2414"]
[BlackElo "2301"]
[Result "1-0"]
[Round "01"]
[TimeControl "180+2"]
[Date "2023.02.21"]
[WhiteClock "0:02:33"]
[BlackClock "0:01:49"]

1. d4 {[%clk 0:02:59]}  Nf6 {[%clk 0:02:59]} 2. Nc3 {[%clk 0:03:00]}  d5 {[%clk 0:02:55]} 3. Bf4 {[%clk 0:02:59]}  g6 {[%clk 0:02:55]} 4. e3 {[%clk 0:02:58]}  Bg7 {[%clk 0:02:55]} 5. h3 {[%clk 0:02:57]}  O-O {[%clk 0:02:53]} 6. Nb5 {[%clk 0:02:56]}  Na6 {[%clk 0:02:53]} 7. Nf3 {[%clk 0:02:56]}  c6 {[%clk 0:02:53]} 8. Nc3 {[%clk 0:02:56]}  Nc7 {[%clk 0:02:52]} 9. Bd3 {[%clk 0:02:54]}  b6 {[%clk 0:02:50]} 10. O-O {[%clk 0:02:54]}  Bb7 {[%clk 0:02:51]} 11. e4 {[%clk 0:02:42]}  dxe4 {[%clk 0:02:50]} 12. Nxe4 {[%clk 0:02:43]}  Ncd5 {[%clk 0:02:48]} 13. Nxf6+ {[%clk 0:02:43]}  Bxf6 {[%clk 0:02:42]} 14. Bh6 {[%clk 0:02:43]}  Bg7 {[%clk 0:02:41]} 15. Qd2 {[%clk 0:02:42]}  c5 {[%clk 0:02:33]} 16. Bxg7 {[%clk 0:02:40]}  Kxg7 {[%clk 0:02:33]} 17. dxc5 {[%clk 0:02:41]}  bxc5 {[%clk 0:02:33]} 18. Be4 {[%clk 0:02:40]}  Rb8 {[%clk 0:02:14]} 19. Rad1 {[%clk 0:02:35]}  Qd6 {[%clk 0:01:55]} 20. Bxd5 {[%clk 0:02:34]}  Bxd5 {[%clk 0:01:52]} 21. Qxd5 {[%clk 0:02:32]}  Qxd5 {[%clk 0:01:52]} 22. Rxd5 {[%clk 0:02:33]}  Rxb2 {[%clk 0:01:50]} 23. Rxc5 {[%clk 0:02:33]}  Rxa2 {[%clk 0:01:51]} 24. Rc7 {[%clk 0:02:34]}  e6 {[%clk 0:01:50]} 25. Ng5 {[%clk 0:02:34]}  Kg8 {[%clk 0:01:49]} 26. Rd1 {[%clk 0:02:33]} 1-0


[Site "https://www.chess.com"]

[Event "Titled Tuesday Blitz February 21 Early 2023"]
[White "Goncalves, Davi Sulzbacher"]
[Black "Milikow, Yoav"]
[WhiteFideId "2154510"]
[BlackFideId "2822237"]
[WhiteElo "2282"]
[BlackElo "2394"]
[Result "0-1"]
[Round "01"]
[TimeControl "180+2"]
[Date "2023.02.21"]
[WhiteClock "0:00:04"]
[BlackClock "0:00:48"]

1. Nf3 {[%clk 0:02:59]}  d5 {[%clk 0:02:59]} 2. d4 {[%clk 0:02:56]}  Nf6 {[%clk 0:02:59]} 3. c4 {[%clk 0:02:56]}  e6 {[%clk 0:02:59]} 4. g3 {[%clk 0:02:56]}  Bb4+ {[%clk 0:02:59]} 5. Bd2 {[%clk 0:02:55]}  Be7 {[%clk 0:02:59]} 6. Bg2 {[%clk 0:02:56]}  O-O {[%clk 0:02:59]} 7. O-O {[%clk 0:02:56]}  c6 {[%clk 0:03:00]} 8. Qc2 {[%clk 0:02:56]}  Nbd7 {[%clk 0:02:52]} 9. Rd1 {[%clk 0:02:55]}  b6 {[%clk 0:02:51]} 10. Bf4 {[%clk 0:02:37]}  Nh5 {[%clk 0:02:36]} 11. Bc1 {[%clk 0:02:35]}  Ba6 {[%clk 0:02:31]} 12. b3 {[%clk 0:02:33]}  f5 {[%clk 0:02:17]} 13. Bb2 {[%clk 0:01:59]}  Rc8 {[%clk 0:02:15]} 14. Nbd2 {[%clk 0:01:58]}  Qe8 {[%clk 0:02:11]} 15. a4 {[%clk 0:01:50]}  Nhf6 {[%clk 0:02:00]} 16. a5 {[%clk 0:01:50]}  b5 {[%clk 0:01:59]} 17. Ne5 {[%clk 0:01:29]}  Nxe5 {[%clk 0:01:53]} 18. dxe5 {[%clk 0:01:30]}  Nd7 {[%clk 0:01:50]} 19. Nf3 {[%clk 0:01:11]}  bxc4 {[%clk 0:01:41]} 20. bxc4 {[%clk 0:00:54]}  Bxc4 {[%clk 0:01:39]} 21. a6 {[%clk 0:00:47]}  Nc5 {[%clk 0:01:34]} 22. Nd4 {[%clk 0:00:31]}  Qf7 {[%clk 0:01:17]} 23. Ba3 {[%clk 0:00:29]}  Nd7 {[%clk 0:01:14]} 24. Bxe7 {[%clk 0:00:20]}  Qxe7 {[%clk 0:01:15]} 25. Nf3 {[%clk 0:00:18]}  Rb8 {[%clk 0:01:10]} 26. Rdb1 {[%clk 0:00:17]}  Nc5 {[%clk 0:01:08]} 27. Nd4 {[%clk 0:00:16]}  Qd7 {[%clk 0:01:06]} 28. Qc3 {[%clk 0:00:16]}  Nxa6 {[%clk 0:01:00]} 29. Rxb8 {[%clk 0:00:14]}  Rxb8 {[%clk 0:01:01]} 30. h4 {[%clk 0:00:13]}  Rb6 {[%clk 0:00:59]} 31. Qa5 {[%clk 0:00:13]}  Kf7 {[%clk 0:00:57]} 32. f4 {[%clk 0:00:11]}  h6 {[%clk 0:00:56]} 33. h5 {[%clk 0:00:10]}  Qb7 {[%clk 0:00:56]} 34. Kh2 {[%clk 0:00:09]}  c5 {[%clk 0:00:51]} 35. Nf3 {[%clk 0:00:06]}  Bxe2 {[%clk 0:00:50]} 36. Nh4 {[%clk 0:00:06]}  Bxh5 {[%clk 0:00:49]} 37. Rd1 {[%clk 0:00:04]}  Bxd1 {[%clk 0:00:48]} 0-1


[Site "https://www.chess.com"]